Cogmind - Beta 13 @@@ ROGUE MODE // 2024.04.04 @ 18:43:37 Player: Iris Result: Self-destructed Performance ------------- Evolutions (1) 500 Regions Visited (2) 400 Robots Destroyed (7) 35 Value Destroyed (121) 121 Prototype IDs (1) 20 Alien Tech Used (0) 0 Bonus (0) 0 TOTAL SCORE: 1076 Bonus ------- None Cogmind --------- Core Integrity 357/400 Matter 300/300 Energy 238/250 System Corruption 0% Temperature Cool (76) Movement Walking (120) Location -9/Materials Parts ------- > --- POWER (1) -------- Ion Engine > --- PROPULSION (3) --- Aluminum Leg Aluminum Leg Flight Unit > --- UTILITY (3) ------ Visual Processing Unit Signal Interpreter > --- WEAPON (2) ------- (None) > --- INVENTORY (5) ---- Wheel Compact Wheel Small Laser Peak State ------------ > --- POWER ------------ Ion Engine > --- PROPULSION ------- Aluminum Leg Aluminum Leg Flight Unit > --- UTILITY ---------- Visual Processing Unit Signal Interpreter > --- WEAPON ----------- EM Pulse Gun Improved EM Shotgun > --- INVENTORY -------- Wheel Compact Wheel Small Laser [Rating: 11] Favorites ----------- Power Light Ion Engine Engine Light Ion Engine Propulsion Flight Unit Leg Aluminum Leg Wheel Compact Wheel Flight Unit Flight Unit Utility Visual Processing Unit Processor Visual Processing Unit Weapon EM Pulse Gun Energy Gun EM Pulse Gun Build | -11 -10 -9 ------- Run | Yrd Mat Mat Slots Evolved 2 | . . 2 Power . | . . . Propulsion 1 | . . 1 Utility 1 | . . 1 Weapon . | . . . Parts Attached 12 | 5 3 4 Power 2 | 1 . 1 Engine 2 | 1 . 1 Core . | . . . Reactor . | . . . Propulsion 5 | 2 1 2 Treads . | . . . Leg 2 | . . 2 Wheel 2 | 2 . . Hover . | . . . Flight 1 | . 1 . Utility 2 | . 2 . Device . | . . . Storage . | . . . Processor 2 | . 2 . Hackware . | . . . Protection . | . . . Artifact . | . . . Weapon 3 | 2 . 1 Energy Gun 3 | 2 . 1 Energy Cannon . | . . . Ballistic Gun . | . . . Ballistic Cannon . | . . . Launcher . | . . . Special Weapon . | . . . Impact Weapon . | . . . Slashing Weapon . | . . . Piercing Weapon . | . . . Special Melee Weapon . | . . . Unidentified Prototypes 1 | . . 1 Parts Lost 3 | . . 3 Power 1 | . . 1 Propulsion . | . . . Utility . | . . . Weapon 2 | . . 2 Highest Loss Streak 2 | . . 2 To Critical Strikes . | . . . Average Slot Usage (%) 71 | . 68 73 Engine 12 | . 14 10 Leg 6 | . . 12 Wheel 5 | . 11 . Flight 9 | . 8 11 Processor 21 | . 19 22 Energy Gun 16 | . 14 18 Naked Turns . | . . . Heaviest Build 10 | 6 5 10 Greatest Support 26 | 26 26 20 Greatest Overweight (x) 2 | . 1 2 Average Overweight (x) . | . . . Largest Inventory Capacity 5 | 5 5 5 Average Capacity 5 | 5 5 5 Most Carried 3 | 1 3 3 Average Carried 2 | . 2 3 Final Capacity 5 | 5 5 5 Final Carried 3 | 1 3 3 Class Distribution -------------------- 74% | Mutant 25% | Scavenger-Mutant Dominant Class ---------------- Mutant | -10/Materials Scavenger-Mutant | -9/Materials Resources | -11 -10 -9 ----------- Run | Yrd Mat Mat Matter Collected 301 | 184 30 87 Remotely . | . . . Salvage Created 279 | . 30 249 Parts 17 | . 4 13 Haulers Intercepted . | . . . Recyclers Shooed 2 | . . 2 Parts Field Recycled . | . . . Retrieved Matter . | . . . Parts Self-Destructed . | . . . Prevented . | . . . Kills | -11 -10 -9 ------- Run | Yrd Mat Mat Combat Hostiles Destroyed 3 | . . 3 Guns 2 | . . 2 AOE 1 | . . 1 Classes Destroyed 5 | . 1 4 Builder 1 | . . 1 Recycler 2 | . . 2 Watcher 1 | . 1 . Swarmer 1 | . . 1 Grunt 2 | . . 2 Best Kill Streak 4 | . 1 4 Combat Bots Only 2 | . . 2 Max Kills in Single Turn 3 | . 1 3 Gunslinging . | . . . Exploded 1 | . . 1 Melee . | . . . Uniques/NPCs Destroyed . | . . . Combat | -11 -10 -9 -------- Run | Yrd Mat Mat Hostile Shots Fired 46 | . 8 38 Missed 15 | . 2 13 Damage Taken 341 | . 68 273 Core 65 | . 22 43 Absorbed by Shields . | . . . Core Remaining (%) 95 | 100 91 . Volleys Fired 16 | . 2 14 Largest 2 | . 1 2 Hottest 85 | . 40 85 Shots Fired 24 | . 2 22 Gun 24 | . 2 22 Cannon . | . . . Launcher . | . . . Special . | . . . Kinetic . | . . . Thermal . | . . . Explosive . | . . . Electromagnetic 24 | . 2 22 Robot Hit Streak 2 | . 1 2 Robot Miss Streak 5 | . 1 5 Penetration Max . | . . . Secondary Targets . | . . . Shots Hit Robots 9 | . 1 8 Core Hits 10 | . 1 9 Critical Kills . | . . . Critical Parts Destroyed . | . . . Critical Strikes . | . . . Melee Attacks . | . . . Impact . | . . . Slashing . | . . . Piercing . | . . . Sneak Attacks . | . . . Combat Hostiles . | . . . Follow-up Attacks . | . . . Damage Inflicted 352 | . 24 328 Guns 179 | . 22 157 Cannons . | . . . Explosions 161 | . . 161 Melee . | . . . Ramming 12 | . 2 10 Kinetic . | . . . Thermal 161 | . . 161 Explosive . | . . . Electromagnetic 179 | . 22 157 Impact . | . . . Slashing . | . . . Piercing . | . . . Highest Corruption . | . . . Average Corruption . | . . . Corruption Purged . | . . . Corruption Blocked . | . . . Overload Shots . | . . . Overflow Damage 6 | . . 6 Projectiles . | . . . Explosions 6 | . . 6 Melee . | . . . Knockbacks . | . . . Impact . | . . . Kinetic . | . . . Secondary . | . . . Self-Inflicted Damage 4 | . 1 3 Shots . | . . . Rammed 3 | . 1 2 Targets Rammed 4 | . 1 3 Kicked 1 | . . 1 Crushed . | . . . Highest Temperature 71 | . . 71 Average Temperature 22 | . . 22 Received Heat Transfer 132 | . 36 96 Siege Activations . | . . . Robots Corrupted . | . . . Combat Hostiles . | . . . Parts Fried . | . . . Impact Corruptions . | . . . Robots Melted . | . . . Combat Hostiles . | . . . Parts Melted . | . . . Heat Transferred 200 | . . 200 Parts Sabotaged . | . . . Parts Stolen . | . . . Parts Stripped . | . . . Power Chain Reactions 2 | . . 2 Alert | -11 -10 -9 ------- Run | Yrd Mat Mat Peak Influence 173 | . 44 173 Initial 18 | . . 18 Average 58 | . 25 100 Maximum Alert Level . | . . . Low Security (%) 100 | 100 100 100 Level 1 . | . . . Level 2 . | . . . Level 3 . | . . . Level 4 . | . . . Level 5 . | . . . High Security . | . . . Max Security . | . . . Squads Dispatched 2 | . 1 1 Investigation 1 | . 1 . Extermination . | . . . Reinforcement 1 | . . 1 Assault . | . . . Garrison . | . . . Intercept . | . . . Searches Triggered . | . . . Construction Impeded . | . . . Haulers Reinforced . | . . . Active Scanning Responses . | . . . Cargo Convoy Interrupts . | . . . Stealth | -11 -10 -9 --------- Run | Yrd Mat Mat Distress Signals 2 | . . 2 Communications Jammed . | . . . Distress Signals . | . . . Times Spotted 17 | . 3 14 Peak Tracking Total 5 | . 2 5 Tactical Retreats 1 | . 1 . Traps | -11 -10 -9 ------- Run | Yrd Mat Mat Traps Triggered . | . . . Indirectly . | . . . Trap Hack Attempts . | . . . Triggered . | . . . Disarmed . | . . . Reprogrammed . | . . . Reused . | . . . Traps Extracted . | . . . Installed . | . . . Triggered . | . . . Machines | -11 -10 -9 ---------- Run | Yrd Mat Mat Machines Disabled 1 | . . 1 Max in Single Turn 1 | . . 1 Machines Repaired . | . . . Machines Dismantled . | . . . Machines Sabotaged . | . . . Overloaded Fab Kills . | . . . Hacking | -11 -10 -9 --------- Run | Yrd Mat Mat Machines Accessed 1 | . 1 . Terminals 1 | . 1 . Fabricators . | . . . Repair Stations . | . . . Recycling Units . | . . . Scanalyzers . | . . . Garrison Access . | . . . Total Hacks 5 | . 5 . Successful 2 | . 2 . Failed 3 | . 3 . Catastrophic 1 | . 1 . Database Lockouts . | . . . Manual 4 | . 4 . Terminals 5 | . 5 . Fabricators . | . . . Repair Stations . | . . . Recycling Units . | . . . Scanalyzers . | . . . Garrison Access . | . . . Terminal Hacks 2 | . 2 . Branch Access Points 1 | . 1 . Locate Traps 1 | . 1 . Fabricator Hacks . | . . . Repair Station Hacks . | . . . Recycling Unit Hacks . | . . . Scanalyzer . | . . . Garrison Access Hacks . | . . . Unauthorized Hacks . | . . . Terminals . | . . . Fabricators . | . . . Repair Stations . | . . . Recycling Units . | . . . Scanalyzers . | . . . Garrison Access . | . . . Data Cores Recovered . | . . . Used . | . . . Hacking Detections 1 | . 1 . Full Trace Events 1 | . 1 . Feedback Events . | . . . Feedback Blocked . | . . . Robot Schematics Acquired . | . . . Robots Built . | . . . Authchips . | . . . Time . | . . . Total Robot Build Rating . | . . . Part Schematics Acquired . | . . . Parts Built . | . . . Authchips . | . . . Time . | . . . Total Part Build Rating . | . . . Parts Repaired . | . . . Time . | . . . Parts Recycled . | . . . Recycled Matter . | . . . Retrieved Matter . | . . . Retrieved Components . | . . . Parts Scanalyzed . | . . . Part Schematics Acquired . | . . . Parts Damaged . | . . . Bothacking | -11 -10 -9 ------------ Run | Yrd Mat Mat Used RIF Installer . | . . . Robots Hacked . | . . . Non-combat . | . . . Combat . | . . . Robot Hacks Applied . | . . . Relay Couplers Released . | . . . Fabnet Peak Effective % . | . . . Robots Rewired . | . . . Allies Hacked . | . . . Hacks Repelled . | . . . Allies | -11 -10 -9 -------- Run | Yrd Mat Mat Total Allies . | . . . Largest Group . | . . . Highest-Rated Group . | . . . Highest-Rated Ally . | . . . Total Orders . | . . . Ally Attacks . | . . . Total Damage . | . . . Kills . | . . . Allies Corrupted . | . . . Allies Melted . | . . . Intel | -11 -10 -9 ------- Run | Yrd Mat Mat Robot Analysis Total . | . . . Derelict Logs Recovered . | . . . Drone Launches . | . . . Drone Recoveries . | . . . Exploration | -11 -10 -9 ------------- Run | Yrd Mat Mat Turns Passed 440 | 58 170 212 Spaces Moved 340 | 56 148 136 Core 2 | 2 . . Treads . | . . . Legs 78 | . . 78 Wheels 113 | 54 59 . Hover . | . . . Flight 147 | . 89 58 Fastest Speed 50 | 50 90 120 Average Speed 110 | 89 108 121 Slowest Speed 200 | 100 120 200 Overloaded Moves . | . . . Propulsion Burnouts . | . . . Robots Hopped . | . . . Cave-ins Triggered . | . . . Exploration Rate (%) 14 | 4 25 13 Regions Visited 2 Branch Regions . Pre-discovered Areas . | . . . Known Exits Taken 1 | . 1 . Unknown Exits Taken 1 | 1 . . Scrap Searched . | . . . Spaces Dug . | . . . Terrain Destroyed 4 | . . 4 Melee . | . . . Projectile . | . . . AOE 4 | . . 4 Terrain Rammed . | . . . Walls Destroyed . | . . . Machines Disabled . | . . . Actions | -11 -10 -9 --------- Run | Yrd Mat Mat Total 373 | 61 155 157 Wait . | . . . Move 338 | 55 147 136 Hop . | . . . Pick Up . | . . . Fast Attach 12 | 5 3 4 Attach . | . . . Detach 3 | 1 2 . Swap . | . . . Drop . | . . . Fire 16 | . 2 14 Melee . | . . . Ram 3 | . 1 2 Kick 1 | . . 1 Crush . | . . . Escape Stasis . | . . . Rewire . | . . . Trap . | . . . Miscellaneous . | . . . Route ------- -11/Scrapyard -10/Materials (discovered 2 exits: *Mat / Min) -9/Materials History --------- Turn | Location | Event 21 | -11/Scrapyard | Discovered new exit (range 15) 59 | -11/Scrapyard | Entered Materials 64 | -10/Materials | Identified exit to Mines 213 | -10/Materials | Discovered new exit (range 6) 218 | -10/Materials | Identified exit to Materials 229 | -10/Materials | Entered another Materials area 229 | -9/Materials | Evolved 2 slots: Propulsion x1, Utility x1 315 | -9/Materials | Build established: Mutant 441 | -9/Materials | Self-destructed Last Messages --------------- 00334_ U-05 Engineer destroyed. 00338_ Acquired 15 matter. 00345_ Kicked R-06 Scavenger out of the way. 00348_ Acquired 6 matter. 00358_ R-06 Scavenger collects Corrupted Lgt. Ion Engine. 00369_ T-07 Excavator is excavating. 00370_ W-16 Scout sends out distress signal. 00371_ K-01 Serf collects debris. 00373_ T-07 Excavator is excavating. 00374_ K-01 Serf cleans the Material Processor. 00377_ Destroyed Hover Unit. 00378_ K-01 Serf collects debris. 00406_ K-01 Serf cleans the Hadron Collector. 00424_ S-10 Pest destroyed. 00428_ R-06 Scavenger sends out distress signal. 00436_ Chain reaction triggered in Rnf. Ion Engine. 00437_ EM Pulse Gun destroyed. 00441_ Imp. EM Shotgun destroyed. Map ----- +----------------------------------------------------+ | | | | | | | | | | | | | | | | | | | | | | | | | | | | | ???????????#?###########???????????????????????? | | ???????????? #???????????????????????? | | ???????????# """ T #???????????????????????? | | ???????????# """"" #???????????????????????? | | ???????????# """"" #???????????????????????? | | ???????????# """"" #???????????????????????? | | ???????????# """ #???????????????????????? | | ???????????# #?#######???????????????? | | ???????????######+#######; #???????????????? | | ???????????# # [ """?????????? | | ???????????# g b g/ """?????????? | | ???????????# [g= @ g#???????????????? | | ??????????#####r#########; #???????????????? | | ??????????# #?????? ##???????????????? | | ??????????# #???????? #????????????????? | | ??????????# """" #??????????????????????????? | | ??????????# """" #??????????????????????????? | | ??????????# """" #??????????????????????????? | | ??????????# #??????????????????????????? | | ??????????# #??????????????????????????? | | ??????????# #??????????????????????????? | | ??????????###/#######??????????????????????????? | | ????????????# #????????????????????????????????? | | ???########## #????????????????????????????????? | | ???# # ######???????????????????????????? | | ???#"S # !##??????????????????????????? | | ???#""" # % !#??????????????????????????? | | ???# "" ! #% !#??????????????????????????? | | ???# *+ !#??????????????????????????? | | ???# "! # !#??????????????????????????? | | ???# "!=# !##??????????????????????????? | | ???# """# ####???????????????????????????? | | ???# # #??????????????????????????????? | | ???########## #??????????????????????????????? | | ????????????# #??????????????????????????????? | | ????????????# #??????????????????????????????? | +----------------------------------------------------+ Best States ------------- Heat Dissipation 28 Energy Generation 10 Energy Capacity 250 Matter Stores 300 Matter Capacity 300 Sight Range 18 Terrain Scan Density 10 Evasion (%) 55 Item Schematics ----------------- None Robot Schematics ------------------ None Fabricated ------------ Nothing Alien Tech Used ----------------- None Achievements -------------- None Challenges ------------ None Game ------ Seed NodeSkeletonLink Manual? 0 Play Time 00:05:16 Cumulative 7.5 hours Start 2024.04.04 @ 18:39:41 End 2024.04.04 @ 18:43:37 Sessions 1 Manual Loads 0 Difficulty Rogue Special Mode None Game No. 21 Rogue 21 Adventurer 0 Explorer 0 Win Type - Total 0 Types 0/0/0/0/0/0/0/0/0 Lore% 12 Gallery% 16 Achievement% 16 Wizard Run 0 Options --------- Layout 2 ASCII 0 Keyboard 1 Movement Arrows Keybinds 0 Fullscreen 2 Font 32/SmallcapsGlow Map View 50x44 Zoom Use 0% Tactical HUD 1 Map Filters NONE Filters NONE Steam 1 RUN: d12d1b13-1560-40ae-a2c5-f0590b8d170b